bitfinex-derivatives/quotes_ETHF0:USTF0_20240910
["timestamp","ask_amount","ask_price","bid_price","bid_amount"]
[1725975776243,0.42718,2340.9,2340.7,0.3718]
[1725975776540,0.42715,2341.0,2340.8,0.42718]
[1725975776741,1.06782,2341.1,2340.7,0.79899]
[1725975776931,1.06782,2341.1,2340.7,0.3718]
[1725975777132,0.42716,2341.0,2340.8,0.42717]
[1725975777334,0.42717,2340.9,2340.7,0.79899]
[1725975777534,1.06782,2341.1,2340.7,0.79899]
[1725975777739,0.42718,2340.9,2340.8,0.42718]
[1725975777930,0.42718,2340.9,2340.7,0.79898]
[1725975778137,0.42718,2340.8,2340.7,0.3718]
[1725975778539,1.06779,2341.2,2340.8,0.42717]
[1725975778838,1.06772,2341.3,2340.7,0.3718]
[1725975779037,0.42712,2341.1,2340.7,0.3718]
[1725975779233,0.42712,2341.1,2341.0,0.42714]
[1725975779836,0.42712,2341.1,2340.9,0.42715]
[1725975780034,1.45671,2341.4,2340.7,0.79898]
[1725975780240,1.06783,2341.1,2340.8,0.42717]
[1725975780439,1.06779,2341.2,2340.8,0.42717]
[1725975780645,1.06772,2341.3,2340.9,0.42715]
[1725975780948,0.42715,2341.0,2340.8,0.42717]
[1725975781339,1.06772,2341.3,2341.0,0.42713]
[1725975781541,1.48698209,2341.4,2340.7,0.3718]
[1725975781542,1.45669,2341.4,2340.7,0.3718]
[1725975781744,8.55098209,2341.5,2340.8,0.42718]
[1725975781745,5.27098209,2341.5,2340.8,0.42718]
[1725975782046,1.09798209,2341.7,2341.5,0.42705]
[1725975782239,0.42704,2341.6,2341.4,0.42706]
[1725975782640,0.42705,2341.5,2341.4,0.42707]
[1725975782849,1.06768,2341.4,2341.0,0.42713]
[1725975783156,0.42716,2340.9,2340.8,0.3864]
[1725975783336,0.42723,2340.6,2340.1,0.3818]
[1725975783645,0.42726,2340.4,2340.2,0.7614]
[1725975783847,1.10463454,2340.7,2340.0,0.42731]
[1725975784040,1.10463454,2340.6,2340.4,0.42724]
[1725975784237,1.10463454,2340.7,2340.4,0.42724]
[1725975784438,1.53182454,2340.8,2340.0,1.21128604]
[1725975784654,1.10463454,2340.7,2340.2,0.42728]
[1725975784843,0.42728,2340.3,2339.8,0.7623]
[1725975785045,0.42728,2340.3,2340.0,0.42732]
[1725975785557,1.50473454,2340.5,2339.9,0.42734]
[1725975785558,0.4273,2340.2,2339.9,0.42734]
[1725975785849,0.42734,2340.0,2339.8,0.7623]
[1725975786144,0.42732,2340.1,2339.8,0.3678]
[1725975786750,0.42732,2340.1,2339.8,0.79516]
[1725975786950,0.4273,2340.2,2339.8,0.79515]
[1725975787345,0.4273,2340.2,2339.9,0.42734]
[1725975787945,0.4273,2340.2,2339.8,0.79515]
[1725975788450,0.4273,2340.2,2339.9,0.42734]
[1725975789243,0.4273,2340.2,2339.8,0.79515]
[1725975789439,0.4273,2340.2,2339.9,0.42734]
[1725975789750,0.42734,2339.9,2339.8,0.3678]
[1725975790352,0.42734,2339.9,2339.5,0.42741]
[1725975790353,0.42736,2339.8,2339.5,0.42741]
[1725975790648,1.06827,2340.1,2339.4,4.082]
[1725975790649,1.06827,2340.1,2339.4,4.4742]
[1725975790853,0.42734,2340.0,2339.4,4.4742]
[1725975791055,1.10463454,2340.4,2339.5,1.06855]
[1725975791347,4.5731,2340.5,2340.0,0.42732]
[1725975791549,0.42728,2340.3,2340.0,0.42732]
[1725975791752,0.42728,2340.3,2340.0,0.42731]
[1725975791942,0.4001,2340.5,2339.5,1.06855]
[1725975792255,0.42726,2340.4,2340.1,0.42729]
[1725975792449,0.42722,2340.6,2340.3,0.42726]
[1725975792645,0.42723,2340.6,2340.4,0.3922]
[1725975792843,0.4039,2340.8,2340.4,0.3922]
[1725975793243,0.42722,2340.6,2340.4,0.3922]
[1725975793442,5.3408,2340.7,2339.9,0.3895]
[1725975793650,0.42727,2340.3,2340.0,0.81041]
[1725975793857,1.068,2340.7,2340.0,0.81041]
[1725975793858,0.42725,2340.5,2340.0,0.3831]
[1725975794057,0.42726,2340.4,2340.1,0.42731]
[1725975794955,0.42717,2340.9,2340.6,0.4272]
[1725975795160,1.06777,2341.2,2340.0,0.3831]
[1725975795345,4.34777,2341.2,2340.3,0.42726]
[1725975795546,4.34777,2341.2,2340.0,0.3831]
[1725975795547,1.06803,2340.7,2340.0,0.81042]
[1725975795752,3.28,2340.9,2340.1,0.4273]
[1725975795753,0.42728,2340.3,2340.1,0.4273]
[1725975795944,0.42728,2340.3,2340.0,0.81041]
[1725975796144,0.42731,2340.1,2339.9,0.3895]
[1725975796349,0.42731,2340.1,2339.9,0.81684]
[1725975796543,0.42731,2340.1,2339.9,0.3895]
[1725975796748,0.42732,2340.0,2339.9,0.3895]
[1725975796956,2.67,2340.2,2339.9,0.3895]
[1725975797160,0.42732,2340.0,2339.9,0.3895]
[1725975797351,0.42735,2339.9,2339.7,0.42737]
[1725975798051,2.67,2340.1,2339.7,0.42737]
[1725975798358,0.42732,2340.0,2339.8,0.42736]
[1725975798552,2.67,2340.2,2339.9,0.42734]
[1725975798745,0.42731,2340.1,2339.9,0.42734]
[1725975798950,2.67,2340.2,2340.0,0.42732]
[1725975799145,10.85613092,2340.4,2340.0,0.42732]
[1725975799146,13.52613092,2340.4,2340.0,0.42731]
[1725975799348,13.52613092,2340.4,2339.8,2.67]
[1725975799349,0.42726,2340.4,2339.8,2.67]
[1725975799554,3.0543,2340.6,2340.2,0.42728]
[1725975799751,0.42723,2340.5,2340.2,0.42728]
[1725975799950,0.42725,2340.4,2340.3,0.3853]
[1725975800453,0.42725,2340.4,2339.5,1.44944]
[1725975800454,12.9428,2340.4,2339.5,0.3809]
[1725975800652,0.42731,2340.1,2339.9,0.42734]
[1725975800946,2.67,2340.4,2339.8,0.3853]
[1725975801145,10.80784297,2340.5,2339.8,3.0553]
[1725975801348,0.42726,2340.4,2340.2,0.42729]
[1725975801546,0.42727,2340.3,2340.1,0.42729]
[1725975801750,2.67,2340.5,2339.8,0.3853]
[1725975801951,0.42728,2340.3,2340.1,0.4273]
[1725975802350,1.45237,2340.6,2339.8,0.3853]
[1725975802554,0.42728,2340.3,2340.1,0.4273]
[1725975802753,0.4273,2340.2,2340.0,0.42732]
[1725975803058,0.3843,2340.6,2340.1,0.42731]
[1725975803462,0.4273,2340.2,2339.8,0.3853]
[1725975803658,0.4273,2340.2,2340.0,0.42732]
[1725975803956,0.3843,2340.6,2339.8,0.3853]
[1725975804160,0.42729,2340.2,2339.8,0.3853]
[1725975804353,0.42728,2340.3,2340.1,0.42729]
[1725975804559,0.42728,2340.3,2340.2,0.42729]
[1725975804760,0.42726,2340.4,2340.2,0.42729]
[1725975804954,0.3843,2340.6,2339.8,1.45369]
[1725975805154,0.3843,2340.6,2340.2,0.42728]
[1725975805155,0.42726,2340.4,2340.2,0.42728]
[1725975806260,0.42727,2340.3,2340.2,0.42728]
[1725975806563,0.42731,2340.1,2340.0,0.42732]
[1725975806768,0.3843,2340.6,2339.8,1.45369]
[1725975806971,0.42729,2340.2,2340.1,0.4273]
[1725975807266,0.42734,2339.9,2339.8,0.3853]
[1725975807461,0.42736,2339.9,2339.7,0.42737]
[1725975807657,19.4559314,2340.5,2339.5,0.3809]
[1725975807658,1.06814,2340.4,2339.5,1.1765]
[1725975807958,0.42738,2339.7,2339.5,1.17651]
[1725975808154,0.42737,2339.8,2339.6,0.42739]
[1725975808355,1.06834,2340.0,2339.0,4.082]
[1725975808565,4.3485,2339.6,2339.1,0.4037]
[1725975808867,0.42742,2339.5,2339.2,0.42746]
[1725975809066,0.42743,2339.4,2339.1,0.83118]
[1725975809365,11.33830468,2339.6,2339.1,0.4037]
[1725975809565,0.42744,2339.4,2339.1,0.4037]
[1725975809758,0.42742,2339.5,2339.1,0.83118]
[1725975809957,0.42743,2339.5,2339.1,0.83118]
[1725975810259,10.91089468,2339.6,2339.1,0.4037]
[1725975810467,0.42743,2339.5,2339.1,0.83118]
[1725975810660,0.4037,2339.7,2339.3,0.42744]
[1725975810661,0.83109,2339.7,2339.3,0.42744]
[1725975811154,0.4037,2339.7,2339.1,0.4037]
[1725975811358,0.83109,2339.7,2339.3,0.42745]
[1725975811567,0.83109,2339.7,2339.1,0.4037]
[1725975811861,0.4274,2339.6,2339.2,0.42746]
[1725975812059,0.4037,2339.7,2339.1,0.4037]
[1725975812262,0.42744,2339.4,2339.1,0.4037]
[1725975812463,0.42744,2339.4,2339.1,0.83118]
[1725975812667,0.42744,2339.4,2339.1,0.4037]
[1725975812967,0.42742,2339.5,2339.2,0.42746]
[1725975813265,0.4037,2339.7,2339.3,0.42743]
[1725975813266,0.42739,2339.7,2339.3,0.42743]
[1725975813474,0.42737,2339.8,2339.1,41.2037]
[1725975813767,11.00712094,2339.8,2339.5,0.42741]
[1725975813954,10.57975094,2339.8,2339.5,0.42741]
[1725975814158,4.173,2339.9,2339.2,0.3904]
[1725975814358,4.173,2339.9,2339.4,0.42742]
[1725975814359,0.42737,2339.8,2339.4,0.42742]
[1725975814558,4.173,2339.9,2339.4,0.42742]
[1725975814767,4.60036,2339.9,2339.5,0.42741]
[1725975815168,0.42737,2339.8,2339.5,0.42741]
[1725975815869,4.60035,2339.9,2339.5,0.42741]
[1725975816069,4.173,2339.9,2339.3,0.21502479]
[1725975816266,4.173,2339.9,2339.2,0.3904]
[1725975816267,0.42737,2339.8,2339.5,0.42741]
[1725975816770,4.60035,2339.9,2339.6,0.42739]
[1725975816976,1.10463454,2340.3,2339.7,0.377]
[1725975817274,10.83952866,2340.2,2339.9,0.42733]
[1725975817465,11.26682866,2340.2,2339.9,0.42733]
[1725975817767,11.26680866,2340.3,2340.0,0.42731]
[1725975817969,1.53187454,2340.5,2340.2,0.42728]
[1725975818171,1.53187454,2340.5,2340.0,0.42731]
[1725975818172,0.42728,2340.3,2340.0,0.42731]
[1725975818471,0.42728,2340.3,2339.7,0.377]
[1725975818472,0.42736,2339.9,2339.7,0.377]
[1725975818666,0.42738,2339.8,2339.5,0.4274]
[1725975818862,0.42735,2339.9,2339.4,0.366]
[1725975819066,0.42735,2339.9,2339.7,0.42737]
[1725975819578,0.42735,2339.9,2339.4,0.366]
[1725975819579,1.10463454,2340.3,2339.4,0.366]
[1725975819877,1.10463454,2340.3,2339.9,0.42733]
[1725975819878,0.42731,2340.1,2339.9,0.42733]
[1725975820067,1.10463454,2340.3,2339.4,0.366]
[1725975820068,0.42734,2340.0,2339.4,0.366]
[1725975820265,1.10463454,2340.2,2339.7,0.42737]
[1725975820463,1.10463454,2340.2,2339.4,0.366]
[1725975820464,0.42734,2340.0,2339.8,0.42736]
[1725975820672,0.42735,2339.9,2339.7,0.42737]
[1725975820871,0.42733,2340.0,2339.8,0.42735]
[1725975821678,5.99518313,2340.3,2339.4,0.366]
[1725975821679,2.17284454,2340.3,2339.4,0.366]
[1725975821879,2.17284454,2340.3,2339.8,0.42735]
[1725975822075,0.42733,2340.0,2339.8,0.42735]
[1725975822285,0.42731,2340.1,2339.9,0.42734]
[1725975822781,2.17284454,2340.3,2340.1,0.4273]
[1725975822782,0.42727,2340.3,2340.1,0.4273]
[1725975822976,0.42727,2340.3,2339.7,1.06845]
[1725975822977,4.60026,2340.4,2340.2,0.42729]
[1725975823287,1.53185454,2340.6,2339.9,1.06836]
[1725975823480,0.42726,2340.4,2340.0,0.7643]
[1725975823682,1.10463454,2340.6,2340.1,0.4273]
[1725975823878,0.42728,2340.3,2340.0,0.7643]
[1725975824187,2.67,2340.4,2340.0,0.7643]
[1725975824389,3.77463454,2340.4,2340.0,0.7643]
[1725975824781,0.4273,2340.2,2340.0,0.7643]
[1725975824986,0.4273,2340.2,2340.0,1.19162]
[1725975825588,3.77463454,2340.4,2340.0,0.7643]
[1725975825891,3.77463454,2340.4,2340.0,1.19162]
[1725975826087,0.42729,2340.2,2340.0,1.19162]
[1725975826291,0.42735,2339.9,2339.7,0.42737]
[1725975826583,2.67,2339.9,2339.7,0.42738]
[1725975826776,2.67,2339.9,2339.5,0.3937]
[1725975826984,3.09735,2339.9,2339.7,0.42737]
[1725975827183,3.09735,2339.9,2339.5,0.3937]
[1725975827184,2.67,2339.9,2339.5,0.3937]
[1725975827481,3.09734,2339.9,2339.7,0.42737]
[1725975827677,4.17173454,2340.1,2339.5,0.3937]
[1725975827878,0.42735,2339.9,2339.7,0.42737]
[1725975828286,0.42733,2340.0,2339.8,0.42735]
[1725975828889,1.10463454,2340.1,2339.5,1.46223]
[1725975829085,2.07426313,2340.2,2340.1,0.42731]
[1725975829086,1.10463454,2340.2,2340.1,0.42731]
[1725975829282,1.10463454,2340.5,2340.4,0.42725]
[1725975829484,1.10463454,2340.5,2340.0,2.67]
[1725975829686,2.07420313,2340.6,2340.4,0.42724]
[1725975829687,1.53186454,2340.6,2340.4,0.42724]
[1725975830389,1.53186454,2340.6,2340.1,0.7702]
[1725975830390,0.42723,2340.5,2340.1,0.7702]
[1725975830596,1.53186454,2340.5,2340.3,0.42727]
[1725975830789,1.53186454,2340.5,2340.4,0.42725]
[1725975830790,1.10463454,2340.5,2340.4,0.42725]
[1725975830990,1.53187454,2340.5,2340.3,0.42726]
[1725975831198,4.20186454,2340.6,2340.3,0.42726]
[1725975831402,4.20186454,2340.6,2340.1,0.7702]
[1725975831403,0.42724,2340.5,2340.2,0.42728]
[1725975831591,1.10463454,2340.5,2340.1,0.7702]
[1725975831791,4.20186454,2340.6,2340.4,0.42725]
[1725975831987,4.20186454,2340.6,2340.5,0.42723]
[1725975831988,1.10463454,2340.6,2340.5,0.42723]
[1725975832191,1.53182454,2340.8,2340.5,0.42723]
[1725975832398,0.42725,2340.5,2340.1,0.7702]
[1725975832603,3.77463454,2340.6,2340.2,0.42727]
[1725975832805,2.67,2340.4,2340.3,0.42727]
[1725975832993,4.20186454,2340.6,2340.3,0.42727]
[1725975833194,1.53186454,2340.6,2340.3,0.42727]
[1725975833504,1.53186454,2340.6,2340.1,0.7702]
[1725975833505,1.10463454,2340.7,2340.5,0.42723]
[1725975833800,1.10463454,2340.7,2340.2,2.67]
[1725975833999,1.10463454,2340.7,2340.6,0.42721]
[1725975834401,1.10463454,2340.9,2340.8,0.42718]
[1725975834700,5.27763454,2341.1,2340.9,0.42715]
[1725975834901,5.27763454,2341.1,2340.8,0.42717]
[1725975834902,1.53177454,2341.1,2340.8,0.42717]
[1725975835404,0.42714,2341.1,2340.8,0.42717]
[1725975835601,1.53176454,2341.1,2340.8,0.42717]
[1725975835793,0.42713,2341.1,2340.8,0.42717]
[1725975835996,0.42715,2341.0,2340.7,1.20748]
[1725975836196,1.53176454,2341.1,2340.8,0.42717]
[1725975836905,0.42713,2341.1,2340.9,0.42716]
[1725975837203,1.53174454,2341.2,2340.7,0.7803]
[1725975837406,1.10463454,2341.2,2340.7,0.7803]
[1725975837599,0.42712,2341.2,2340.9,0.42715]
[1725975837896,1.10463454,2341.3,2341.1,0.42712]
[1725975838098,1.10463454,2341.3,2340.7,0.7803]
[1725975838099,1.10463454,2341.3,2341.2,0.42711]
[1725975838297,1.10463454,2341.3,2340.7,1.84827]
[1725975838298,1.10463454,2341.5,2341.3,0.42708]
[1725975838498,2.04537313,2341.6,2341.3,0.42708]
[1725975838499,1.53167454,2341.6,2341.3,0.42708]
[1725975838702,0.42704,2341.6,2341.3,0.42708]
[1725975838896,0.42706,2341.5,2340.8,1.06795]
[1725975839101,1.10463454,2341.7,2340.8,1.06795]
[1725975839102,1.10463454,2341.6,2341.2,0.4271]
[1725975839299,1.10463454,2341.6,2341.1,0.42711]
[1725975839300,0.42708,2341.4,2341.1,0.42711]
[1725975839696,0.42712,2341.2,2340.7,0.7803]
[1725975839900,0.42708,2341.4,2340.7,0.7803]
[1725975840100,0.42708,2341.4,2341.1,0.42711]
[1725975840296,0.42708,2341.4,2340.7,0.7803]
[1725975840498,1.10463454,2341.6,2341.1,0.42711]
[1725975840903,0.42709,2341.3,2341.1,0.42711]
[1725975841198,1.10463454,2341.6,2341.0,0.42713]
[1725975841199,0.42711,2341.2,2341.0,0.42713]
[1725975842201,1.06768,2341.4,2340.7,0.7803]
[1725975842407,0.42715,2341.0,2340.8,0.42718]
[1725975842704,2.17233454,2341.4,2340.9,0.42715]
[1725975842894,1.10463454,2341.6,2341.2,0.42709]
[1725975843294,7.5512,2341.5,2340.8,0.21818104]
[1725975843503,0.42715,2341.0,2340.7,0.7803]
[1725975843804,0.42715,2341.0,2340.8,0.42717]
[1725975844005,1.06772,2341.3,2340.7,0.7803]
[1725975844302,1.06772,2341.3,2340.1,2.53584152]
[1725975844303,0.42726,2340.4,2340.2,0.42728]
[1725975844503,3.28,2340.9,2339.9,5.19004311]
[1725975844504,0.42728,2340.3,2340.1,0.4273]
[1725975844801,0.42729,2340.2,2340.0,0.42732]
[1725975845000,5.45266454,2340.7,2340.1,0.4273]
[1725975845202,0.42726,2340.4,2340.2,0.42729]
[1725975845401,0.42726,2340.4,2340.1,0.42729]
[1725975845604,5.45266454,2340.7,2340.1,0.42729]
[1725975845802,5.45266454,2340.7,2339.9,0.7761]
[1725975845803,1.48413454,2340.8,2339.9,1.84445]
[1725975846109,0.42722,2340.6,2340.3,0.42725]
[1725975846306,0.3795,2340.8,2339.9,0.7761]
[1725975846307,0.42721,2340.7,2340.5,0.42722]
[1725975846500,0.80669,2340.8,2340.5,0.42722]
[1725975846694,0.3795,2340.8,2340.1,1.06827]
[1725975847006,1.64697313,2341.1,2340.2,1.06823]
[1725975847007,1.47893454,2341.1,2340.2,1.06823]
[1725975847206,0.42718,2340.8,2340.6,0.42721]
[1725975847601,0.42718,2340.8,2340.3,0.3828]
[1725975847602,4.272,2340.8,2340.4,0.42724]
[1725975847800,0.42721,2340.7,2340.4,0.42724]
[1725975848005,3.28,2340.9,2340.2,0.42728]
[1725975848199,0.42724,2340.5,2340.3,0.42726]
[1725975848399,0.42728,2340.3,2340.0,0.42732]
[1725975848995,0.80416,2340.4,2339.9,0.7761]
[1725975849196,0.3769,2340.4,2339.9,0.7761]
[1725975849400,0.3769,2340.4,2340.2,0.42728]
[1725975849596,0.42725,2340.5,2340.2,0.42728]
[1725975849809,1.10463454,2340.8,2339.9,1.84446]
[1725975850004,0.42721,2340.7,2340.4,0.42724]
[1725975850203,0.42722,2340.6,2340.3,0.42726]
[1725975850411,0.42725,2340.5,2339.9,0.7761]
[1725975850611,0.42725,2340.5,2340.2,0.42728]
[1725975850808,10.56109484,2340.8,2340.2,0.42728]
[1725975851015,0.42724,2340.5,2340.2,0.42728]
[1725975851517,0.42724,2340.5,2340.3,0.42727]
[1725975851699,10.56109484,2340.8,2340.0,1.06832]
[1725975851906,0.42721,2340.7,2340.0,1.06832]
[1725975852213,0.42722,2340.6,2340.3,0.42726]
[1725975852419,13.87373623,2340.9,2339.9,0.7761]
[1725975852711,0.42724,2340.5,2340.2,0.42728]
[1725975852914,1.068,2340.7,2339.9,0.7761]
[1725975853107,0.42729,2340.3,2339.9,0.7761]
[1725975853306,0.42726,2340.4,2339.9,0.7761]
[1725975853505,0.42728,2340.3,2340.1,0.4273]
[1725975853811,1.06803,2340.7,2339.9,0.7761]
[1725975854114,0.42723,2340.6,2340.4,0.42725]
[1725975854311,0.42723,2340.5,2340.3,0.42726]
[1725975854510,0.42721,2340.7,2340.0,1.06832]
[1725975854703,0.42721,2340.6,2340.4,0.42724]
[1725975855409,0.42721,2340.7,2340.0,1.06832]
[1725975855711,0.42719,2340.8,2340.5,0.42721]
[1725975855919,1.48153454,2341.0,2340.6,0.4272]
[1725975856108,0.42719,2340.8,2340.6,0.42721]
[1725975856708,2.53777454,2341.1,2340.2,1.0682]
[1725975856709,1.10463454,2341.1,2340.2,1.0682]
[1725975856919,0.42716,2341.0,2340.3,3.28]
[1725975857110,0.42715,2341.0,2340.8,0.42717]
[1725975857311,0.42715,2341.0,2340.5,1.06809]
[1725975857312,0.42712,2341.2,2341.0,0.42714]
[1725975857509,5.81997313,2341.4,2340.9,0.42714]
[1725975857510,0.42713,2341.1,2340.9,0.42714]
[1725975857711,0.42713,2341.1,2340.6,0.364]
[1725975857914,0.42713,2341.1,2341.0,0.42714]
[1725975858218,4.2712,2341.1,2340.6,0.364]
[1725975858414,0.42711,2341.2,2341.0,0.42714]
[1725975858912,5.27763454,2341.4,2340.6,0.364]
[1725975859113,6.34533454,2341.4,2341.0,0.42714]
[1725975859317,0.42712,2341.2,2341.0,0.42714]
[1725975859514,5.27763454,2341.4,2340.7,40.8]
[1725975859718,0.42712,2341.2,2341.0,0.42713]
[1725975859914,0.4271,2341.3,2340.7,40.8]
[1725975860215,0.4271,2341.3,2341.1,0.42712]
[1725975860216,0.42709,2341.3,2341.1,0.42712]
[1725975860418,1.10463454,2341.5,2341.2,0.4271]
[1725975861015,0.42709,2341.3,2340.9,0.389]
[1725975861213,0.42711,2341.2,2340.9,0.389]
[1725975861407,0.42711,2341.2,2341.1,0.42712]
[1725975861613,1.10463454,2341.4,2341.1,0.42712]
[1725975861808,0.42708,2341.4,2341.2,0.42711]
[1725975862014,0.42707,2341.4,2341.3,0.3867]
[1725975862513,0.4271,2341.3,2341.1,0.42712]
[1725975862717,0.42708,2341.4,2341.2,0.42709]
[1725975863118,0.42709,2341.3,2341.2,0.42711]
[1725975863322,0.42708,2341.4,2341.2,0.42711]
[1725975864026,0.42708,2341.4,2341.0,0.7585]
[1725975864322,0.42708,2341.4,2341.2,0.42709]
[1725975864519,0.42709,2341.3,2341.2,0.42709]
[1725975864724,0.42709,2341.3,2341.2,0.4271]
[1725975864918,0.42709,2341.3,2341.2,0.42711]
[1725975865817,1.64697313,2341.6,2341.2,0.42711]
[1725975865818,0.42708,2341.4,2341.2,0.42711]
[1725975866720,0.42709,2341.3,2341.2,0.42711]
[1725975866921,0.42708,2341.4,2341.0,0.7585]
[1725975867132,1.10463454,2341.6,2341.1,1.06782]
[1725975867424,1.64697313,2341.7,2341.4,0.42705]
[1725975867425,1.10463454,2341.7,2341.4,0.42705]
[1725975867623,2.17222454,2341.6,2341.0,0.7585]
[1725975867822,0.42709,2341.3,2341.1,0.42712]
[1725975868122,0.42709,2341.3,2341.0,0.7585]
[1725975868123,0.42708,2341.4,2341.3,0.42709]
[1725975868325,2.17219454,2341.7,2341.3,0.42708]
[1725975868714,0.42707,2341.4,2341.3,0.42709]
[1725975868929,0.42709,2341.3,2341.2,0.4271]
[1725975869119,0.42709,2341.3,2341.0,0.7585]
[1725975869120,1.06763,2341.5,2341.0,0.3867]
[1725975869317,0.42712,2341.1,2340.9,0.389]
[1725975869519,0.42714,2341.0,2340.9,0.81616]
[1725975869914,1.06783,2341.1,2340.7,0.80189]
[1725975870118,1.06777,2341.2,2340.7,0.3747]
[1725975870331,0.42713,2341.1,2341.0,0.42714]
[1725975870516,0.42713,2341.1,2340.7,0.3747]
[1725975870517,0.42713,2341.1,2340.9,0.42715]
[1725975870719,1.10463454,2341.2,2340.7,0.3747]
[1725975871023,0.42718,2340.9,2340.7,0.80189]
[1725975871229,0.42718,2340.9,2340.8,0.42718]
[1725975871431,1.10463454,2341.2,2340.8,0.42718]
[1725975871930,1.10463454,2341.2,2340.7,0.3747]
[1725975871931,0.42714,2341.1,2340.7,0.3747]
[1725975872120,1.10463454,2341.2,2340.7,0.3747]
[1725975872421,0.42713,2341.1,2340.7,0.3747]
[1725975872621,0.42714,2341.0,2340.9,0.42715]
[1725975872822,0.42714,2341.0,2340.9,0.42716]
[1725975873126,0.42714,2341.0,2340.7,0.80189]
[1725975873127,0.42717,2340.9,2340.7,0.80189]
[1725975873329,0.42717,2340.9,2340.7,0.3747]
[1725975873722,0.42715,2341.0,2340.7,0.3747]
[1725975873923,0.42716,2340.9,2340.8,0.42717]
[1725975874629,0.42718,2340.8,2340.7,0.80189]
[1725975875025,0.42717,2340.9,2340.8,0.42718]
[1725975875528,1.06784,2341.1,2340.7,0.3747]
[1725975875825,1.06786,2341.0,2340.5,0.4036]
[1725975876024,0.42717,2340.9,2340.8,0.42718]
[1725975876331,1.10463454,2341.0,2340.9,0.42716]
[1725975876832,1.10463454,2341.0,2340.9,8.43707]
[1725975877129,1.10463454,2341.0,2340.9,14.43707]
[1725975877426,1.10463454,2341.0,2340.9,15.50498]
[1725975877627,1.10463454,2341.0,2340.9,16.13124986]
[1725975878524,1.64697313,2341.1,2341.0,1.495]
[1725975878723,1.64697313,2341.1,2341.0,6.39326986]
[1725975878922,1.64697313,2341.1,2341.0,12.39326986]
[1725975879120,1.64697313,2341.1,2341.0,12.78036986]
[1725975879532,2.19596418,2341.2,2341.1,1.49494]
[1725975879719,2.19596418,2341.2,2341.1,9.06240986]
[1725975879923,2.19596418,2341.2,2341.1,16.06430668]
[1725975880222,2.19596418,2341.2,2341.1,7.99458986]
[1725975881023,2.19596418,2341.2,2341.1,7.36832]
[1725975881225,0.42702,2341.7,2341.1,7.56742536]
[1725975881424,2.67,2341.7,2341.2,0.42709]
[1725975881625,3.0615,2341.7,2341.2,0.42709]
[1725975881819,1.06759,2341.6,2341.0,0.81423]
[1725975882028,0.4271,2341.3,2341.1,0.42712]
[1725975882224,0.42709,2341.3,2341.1,0.42712]
[1725975882532,0.42708,2341.4,2341.0,0.3871]
[1725975882734,0.42709,2341.3,2341.1,0.42711]
[1725975883025,3.0458,2341.5,2340.8,7.5218]
[1725975883026,3.0458,2341.5,2340.8,4.4519]
[1725975883233,0.3967,2341.2,2341.1,0.42712]
[1725975884231,0.42709,2341.3,2341.0,0.42713]
[1725975884433,0.42708,2341.4,2340.8,3.0399]
[1725975884732,0.42709,2341.3,2341.1,0.42711]
[1725975885328,0.42711,2341.2,2341.0,0.42713]
[1725975886029,0.42709,2341.3,2340.8,3.0399]
[1725975886435,0.42709,2341.3,2341.1,0.42711]
[1725975886832,0.42708,2341.4,2341.2,0.42711]
[1725975887137,1.19666,2341.5,2341.0,2.67]
[1725975887430,1.19666,2341.5,2341.3,0.42708]
[1725975887836,1.19666,2341.5,2341.0,2.67]
[1725975888042,1.19666,2341.5,2341.3,0.42709]
[1725975889529,0.42707,2341.4,2341.3,0.42709]
[1725975889728,1.19666,2341.5,2341.3,0.42709]
[1725975890335,0.7696,2341.5,2341.3,0.42709]
[1725975890536,1.19667,2341.5,2341.3,0.42709]
[1725975890735,4.2712,2341.4,2340.7,4.082]
[1725975890943,9.4396,2341.5,2340.8,0.42717]
[1725975890944,0.42715,2341.0,2340.8,0.42717]
[1725975891241,0.3815,2340.9,2340.8,0.42717]
[1725975891541,0.82086,2341.5,2340.9,1.06791]
[1725975891745,0.82086,2341.5,2341.3,0.42708]
[1725975892034,0.3938,2341.5,2341.4,0.42707]
[1725975892545,0.3815,2341.6,2341.4,4.2712]
[1725975892737,0.3815,2341.6,2341.5,0.42705]
[1725975893043,0.3815,2341.6,2341.4,0.42706]
[1725975893538,0.3815,2341.6,2341.5,0.42705]
[1725975894242,8.31093,2342.0,2341.5,0.42705]
[1725975894243,2.19596418,2342.4,2341.6,1.06759]
[1725975894438,0.3917,2342.5,2342.2,2.67]
[1725975894633,0.81858,2342.5,2342.0,3.31052422]
[1725975894830,0.42691,2342.3,2341.8,43.89699]
[1725975895142,0.42695,2342.1,2341.7,4.082]
[1725975895332,0.3917,2342.0,2341.6,3.47442]
[1725975895533,0.81866,2342.0,2341.6,43.8474]
[1725975895736,0.81867,2342.0,2341.6,41.1774]
[1725975895947,0.3664,2341.9,2341.6,0.80442]
[1725975896344,0.3664,2341.9,2341.6,0.3774]
[1725975896846,0.3664,2341.9,2341.6,0.80443]
[1725975897538,0.3664,2341.9,2341.6,0.3774]
[1725975898038,0.3917,2342.0,2341.6,3.0474]
[1725975898239,0.3917,2342.0,2341.7,0.427]
[1725975898442,0.3664,2342.2,2341.9,2.67]
[1725975898648,0.3681,2342.4,2342.1,3.09693]
[1725975898944,0.3664,2342.8,2342.4,0.42688]
[1725975899150,0.3664,2342.8,2342.2,0.3768]
[1725975899151,0.3681,2342.8,2342.7,0.42683]
[1725975899447,2.67,2343.3,2342.8,0.4268]
[1725975899448,0.3844,2343.2,2342.8,0.4268]